{"text_format":"3","workbook":"xlsx","n_sheets":1,"sheets":["Relatório de despesas"],"not_rendered":{"images":2,"defined_names":12},"read":"whole","date_system":"1900"}

{"sheet":"Relatório de despesas","index":0,"n_rows":24,"n_cols":13,"rows_kept":24,"merged":[[3,2,3,3],[3,5,3,6],[3,9,3,10],[4,2,4,3],[4,5,4,6],[4,9,4,10],[5,2,5,3],[5,5,5,6],[5,9,5,10],[6,2,6,3],[6,5,6,6],[6,9,6,10],[7,9,7,10]]}
[null,"RELATÓRIO DE DESPESAS"]
[null,"CONTOSO LTDA."]
[null,"Rua da Graça, 123, Salvador, BA, CEP: 40.123-456"]
[null,"TELEFONE",4255550121,null,"NOME","Yara Lima",null,null,"FINALIDADE","Seminário de Vendas Anual",null,"TAXA DE QUILOMETRAGEM",{"v":1,"d":"R$1.00/km"}]
[null,"FAX",4255550122,null,"DEPARTAMENTO","Vendas",null,null,"INÍCIO",{"$f":"IFERROR(MIN(Despesas[DATA]),\"\")","v":"2018-06-04"},null,"CUSTO DE REFEIÇÃO",{"v":60,"d":"R$60.00/dia"}]
[null,"EMAIL","info@contoso.com",null,"POSIÇÃO","Diretora Executivo",null,null,"TÉRMINO",{"$f":"IFERROR(MAX(Despesas[DATA]),\"\")","v":"2018-07-04"},null,"CUSTO DE HOTEL",{"v":400,"d":"R$400.00/noite"}]
[null,"WEB","www.contoso.com",null,"GERENTE","Henrique Cunha",null,null,"PREPARADO POR","Yara Lima",null,"TARIFA TELEFÔNICA",{"v":20,"d":"R$20.00/dia"}]
[{"$nulls":8},"APROVADO POR","Henrique Cunha",null,"DESPESAS  DIVERSAS",{"v":100,"d":"R$100.00/dia"}]
[]
[null,"DATA","CONTA","DESCRIÇÃO","HOTEL","TRANSPORTE","REFEIÇÕES","TELEFONE","DIVERSOS","INÍCIO DO  \nHODÔMETRO","TÉRMINO DO  \nHODÔMETRO","QUILOMETRAGEM \nTOTAL","TOTAL "]
[null,{"$f":"TODAY()","v":"2018-06-04"},"Vendas","Quilometragem",{"$nulls":4},{"v":100,"d":"R$100.00"},{"v":11378.5,"d":"11,378.5 km"},{"v":11456.2,"d":"11,456.2 km"},{"$f":"IF(COUNTA(Despesas[[#This Row],[INÍCIO DO  \nHODÔMETRO]:[TÉRMINO DO  \nHODÔMETRO]])=2,(Despesas[[#This Row],[TÉRMINO DO  \nHODÔMETRO]]-Despesas[[#This Row],[INÍCIO DO  \nHODÔMETRO]])*TaxaDeQuilometragem,\"\")","v":{"v":77.70000000000073,"d":"R$77.70"}},{"$f":"IF(COUNTA(Despesas[[#This Row],[DATA]:[TÉRMINO DO  \nHODÔMETRO]])=0,\"\",SUM(Despesas[[#This Row],[HOTEL]:[TRANSPORTE]],Despesas[[#This Row],[REFEIÇÕES]:[DIVERSOS]],((Despesas[[#This Row],[TÉRMINO DO  \nHODÔMETRO]]-Despesas[[#This Row],[INÍCIO DO  \nHODÔMETRO]])*(TaxaDeQuilometragem))))","v":{"v":177.70000000000073,"d":"R$177.70"}}]
[null,{"$f":"TODAY()+30","v":"2018-07-04"},"Vendas","Convenção",{"v":890,"d":"R$890.00"},{"v":450,"d":"R$450.00"},{"v":40,"d":"R$40.00"},null,{"v":10,"d":"R$10.00"},{"v":11500,"d":"11,500.0 km"},{"v":11560,"d":"11,560.0 km"},{"$f":"IF(COUNTA(Despesas[[#This Row],[INÍCIO DO  \nHODÔMETRO]:[TÉRMINO DO  \nHODÔMETRO]])=2,(Despesas[[#This Row],[TÉRMINO DO  \nHODÔMETRO]]-Despesas[[#This Row],[INÍCIO DO  \nHODÔMETRO]])*TaxaDeQuilometragem,\"\")","v":{"v":60,"d":"R$60.00"}},{"$f":"IF(COUNTA(Despesas[[#This Row],[DATA]:[TÉRMINO DO  \nHODÔMETRO]])=0,\"\",SUM(Despesas[[#This Row],[HOTEL]:[TRANSPORTE]],Despesas[[#This Row],[REFEIÇÕES]:[DIVERSOS]],((Despesas[[#This Row],[TÉRMINO DO  \nHODÔMETRO]]-Despesas[[#This Row],[INÍCIO DO  \nHODÔMETRO]])*(TaxaDeQuilometragem))))","v":{"v":1450,"d":"R$1,450.00"}}]
[{"$nulls":11},{"$f":"IF(COUNTA(Despesas[[#This Row],[INÍCIO DO  \nHODÔMETRO]:[TÉRMINO DO  \nHODÔMETRO]])=2,(Despesas[[#This Row],[TÉRMINO DO  \nHODÔMETRO]]-Despesas[[#This Row],[INÍCIO DO  \nHODÔMETRO]])*TaxaDeQuilometragem,\"\")","v":""},{"$f":"IF(COUNTA(Despesas[[#This Row],[DATA]:[TÉRMINO DO  \nHODÔMETRO]])=0,\"\",SUM(Despesas[[#This Row],[HOTEL]:[TRANSPORTE]],Despesas[[#This Row],[REFEIÇÕES]:[DIVERSOS]],((Despesas[[#This Row],[TÉRMINO DO  \nHODÔMETRO]]-Despesas[[#This Row],[INÍCIO DO  \nHODÔMETRO]])*(TaxaDeQuilometragem))))","v":""}]
[{"$nulls":11},{"$f":"IF(COUNTA(Despesas[[#This Row],[INÍCIO DO  \nHODÔMETRO]:[TÉRMINO DO  \nHODÔMETRO]])=2,(Despesas[[#This Row],[TÉRMINO DO  \nHODÔMETRO]]-Despesas[[#This Row],[INÍCIO DO  \nHODÔMETRO]])*TaxaDeQuilometragem,\"\")","v":""},{"$f":"IF(COUNTA(Despesas[[#This Row],[DATA]:[TÉRMINO DO  \nHODÔMETRO]])=0,\"\",SUM(Despesas[[#This Row],[HOTEL]:[TRANSPORTE]],Despesas[[#This Row],[REFEIÇÕES]:[DIVERSOS]],((Despesas[[#This Row],[TÉRMINO DO  \nHODÔMETRO]]-Despesas[[#This Row],[INÍCIO DO  \nHODÔMETRO]])*(TaxaDeQuilometragem))))","v":""}]
[{"$nulls":11},{"$f":"IF(COUNTA(Despesas[[#This Row],[INÍCIO DO  \nHODÔMETRO]:[TÉRMINO DO  \nHODÔMETRO]])=2,(Despesas[[#This Row],[TÉRMINO DO  \nHODÔMETRO]]-Despesas[[#This Row],[INÍCIO DO  \nHODÔMETRO]])*TaxaDeQuilometragem,\"\")","v":""},{"$f":"IF(COUNTA(Despesas[[#This Row],[DATA]:[TÉRMINO DO  \nHODÔMETRO]])=0,\"\",SUM(Despesas[[#This Row],[HOTEL]:[TRANSPORTE]],Despesas[[#This Row],[REFEIÇÕES]:[DIVERSOS]],((Despesas[[#This Row],[TÉRMINO DO  \nHODÔMETRO]]-Despesas[[#This Row],[INÍCIO DO  \nHODÔMETRO]])*(TaxaDeQuilometragem))))","v":""}]
[{"$nulls":11},{"$f":"IF(COUNTA(Despesas[[#This Row],[INÍCIO DO  \nHODÔMETRO]:[TÉRMINO DO  \nHODÔMETRO]])=2,(Despesas[[#This Row],[TÉRMINO DO  \nHODÔMETRO]]-Despesas[[#This Row],[INÍCIO DO  \nHODÔMETRO]])*TaxaDeQuilometragem,\"\")","v":""},{"$f":"IF(COUNTA(Despesas[[#This Row],[DATA]:[TÉRMINO DO  \nHODÔMETRO]])=0,\"\",SUM(Despesas[[#This Row],[HOTEL]:[TRANSPORTE]],Despesas[[#This Row],[REFEIÇÕES]:[DIVERSOS]],((Despesas[[#This Row],[TÉRMINO DO  \nHODÔMETRO]]-Despesas[[#This Row],[INÍCIO DO  \nHODÔMETRO]])*(TaxaDeQuilometragem))))","v":""}]
[{"$nulls":11},{"$f":"IF(COUNTA(Despesas[[#This Row],[INÍCIO DO  \nHODÔMETRO]:[TÉRMINO DO  \nHODÔMETRO]])=2,(Despesas[[#This Row],[TÉRMINO DO  \nHODÔMETRO]]-Despesas[[#This Row],[INÍCIO DO  \nHODÔMETRO]])*TaxaDeQuilometragem,\"\")","v":""},{"$f":"IF(COUNTA(Despesas[[#This Row],[DATA]:[TÉRMINO DO  \nHODÔMETRO]])=0,\"\",SUM(Despesas[[#This Row],[HOTEL]:[TRANSPORTE]],Despesas[[#This Row],[REFEIÇÕES]:[DIVERSOS]],((Despesas[[#This Row],[TÉRMINO DO  \nHODÔMETRO]]-Despesas[[#This Row],[INÍCIO DO  \nHODÔMETRO]])*(TaxaDeQuilometragem))))","v":""}]
[{"$nulls":11},{"$f":"IF(COUNTA(Despesas[[#This Row],[INÍCIO DO  \nHODÔMETRO]:[TÉRMINO DO  \nHODÔMETRO]])=2,(Despesas[[#This Row],[TÉRMINO DO  \nHODÔMETRO]]-Despesas[[#This Row],[INÍCIO DO  \nHODÔMETRO]])*TaxaDeQuilometragem,\"\")","v":""},{"$f":"IF(COUNTA(Despesas[[#This Row],[DATA]:[TÉRMINO DO  \nHODÔMETRO]])=0,\"\",SUM(Despesas[[#This Row],[HOTEL]:[TRANSPORTE]],Despesas[[#This Row],[REFEIÇÕES]:[DIVERSOS]],((Despesas[[#This Row],[TÉRMINO DO  \nHODÔMETRO]]-Despesas[[#This Row],[INÍCIO DO  \nHODÔMETRO]])*(TaxaDeQuilometragem))))","v":""}]
[{"$nulls":11},{"$f":"IF(COUNTA(Despesas[[#This Row],[INÍCIO DO  \nHODÔMETRO]:[TÉRMINO DO  \nHODÔMETRO]])=2,(Despesas[[#This Row],[TÉRMINO DO  \nHODÔMETRO]]-Despesas[[#This Row],[INÍCIO DO  \nHODÔMETRO]])*TaxaDeQuilometragem,\"\")","v":""},{"$f":"IF(COUNTA(Despesas[[#This Row],[DATA]:[TÉRMINO DO  \nHODÔMETRO]])=0,\"\",SUM(Despesas[[#This Row],[HOTEL]:[TRANSPORTE]],Despesas[[#This Row],[REFEIÇÕES]:[DIVERSOS]],((Despesas[[#This Row],[TÉRMINO DO  \nHODÔMETRO]]-Despesas[[#This Row],[INÍCIO DO  \nHODÔMETRO]])*(TaxaDeQuilometragem))))","v":""}]
[{"$nulls":11},{"$f":"IF(COUNTA(Despesas[[#This Row],[INÍCIO DO  \nHODÔMETRO]:[TÉRMINO DO  \nHODÔMETRO]])=2,(Despesas[[#This Row],[TÉRMINO DO  \nHODÔMETRO]]-Despesas[[#This Row],[INÍCIO DO  \nHODÔMETRO]])*TaxaDeQuilometragem,\"\")","v":""},{"$f":"IF(COUNTA(Despesas[[#This Row],[DATA]:[TÉRMINO DO  \nHODÔMETRO]])=0,\"\",SUM(Despesas[[#This Row],[HOTEL]:[TRANSPORTE]],Despesas[[#This Row],[REFEIÇÕES]:[DIVERSOS]],((Despesas[[#This Row],[TÉRMINO DO  \nHODÔMETRO]]-Despesas[[#This Row],[INÍCIO DO  \nHODÔMETRO]])*(TaxaDeQuilometragem))))","v":""}]
[{"$nulls":11},{"$f":"IF(COUNTA(Despesas[[#This Row],[INÍCIO DO  \nHODÔMETRO]:[TÉRMINO DO  \nHODÔMETRO]])=2,(Despesas[[#This Row],[TÉRMINO DO  \nHODÔMETRO]]-Despesas[[#This Row],[INÍCIO DO  \nHODÔMETRO]])*TaxaDeQuilometragem,\"\")","v":""},{"$f":"IF(COUNTA(Despesas[[#This Row],[DATA]:[TÉRMINO DO  \nHODÔMETRO]])=0,\"\",SUM(Despesas[[#This Row],[HOTEL]:[TRANSPORTE]],Despesas[[#This Row],[REFEIÇÕES]:[DIVERSOS]],((Despesas[[#This Row],[TÉRMINO DO  \nHODÔMETRO]]-Despesas[[#This Row],[INÍCIO DO  \nHODÔMETRO]])*(TaxaDeQuilometragem))))","v":""}]
[null,"TOTAIS",null,null,{"$f":"SUBTOTAL(109,Despesas[HOTEL])","v":{"v":890,"d":"R$890.00"}},{"$f":"SUBTOTAL(109,Despesas[TRANSPORTE])","v":{"v":450,"d":"R$450.00"}},{"$f":"SUBTOTAL(109,Despesas[REFEIÇÕES])","v":{"v":40,"d":"R$40.00"}},{"$f":"SUBTOTAL(109,Despesas[TELEFONE])","v":0},{"$f":"SUBTOTAL(109,Despesas[DIVERSOS])","v":{"v":110,"d":"R$110.00"}},{"$nulls":3},{"$f":"SUBTOTAL(109,Despesas[[TOTAL ]])","v":{"v":1627.7000000000007,"d":"R$1,627.70"}}]
[{"$nulls":11},"ADIANTAMENTOS",{"v":0,"d":"R$0.00"}]
[{"$nulls":11},"TOTAL",{"$f":"Despesas[[#Totals],[TOTAL ]]-Adiantamentos","v":{"v":1627.7000000000007,"d":"R$1,627.70"}}]